fUSD/lending_fUSD_20240907
["ID","MTS","AMOUNT","RATE_DAILY","PERIOD"]
[337503388,1725721838394,-500.0,0.00014999,2]
[337503389,1725721838404,-500.0,0.00014999,2]
[337503390,1725721838414,-500.0,0.00014999,2]
[337503391,1725721838423,-500.0,0.00014999,2]
[337503392,1725721838433,-500.0,0.00014999,2]
[337503393,1725721838444,-500.0,0.00014999,2]
[337503395,1725721838453,-335.98,0.00014999,2]
[337503397,1725721838462,-500.0,0.00014999,2]
[337503399,1725721838472,-500.0,0.00014999,2]
[337503401,1725721838481,-500.0,0.00014999,2]
[337503403,1725721838491,-500.0,0.00014999,2]
[337503405,1725721838500,-500.0,0.00014999,2]
[337503407,1725721838509,-500.73,0.00014999,2]
[337503408,1725721838520,-500.0,0.00014999,2]
[337503410,1725721838530,-248.17939977,0.00014999,2]
[337503412,1725721838542,-251.82060023,0.00014999,2]
[337503414,1725721838552,-215.47,0.00014999,2]
[337503416,1725721838561,-296.85397769,0.00014999,2]
[337503418,1725721838572,-203.14602231,0.00014999,2]
[337503420,1725721838583,-174.27,0.00014999,2]
[337503422,1725721838592,-500.0,0.00014999,2]
[337503423,1725721838602,-568.69,0.00014999,2]
[337503425,1725721838611,-500.0,0.00014999,2]
[337503427,1725721838620,-500.0,0.00014999,2]
[337503429,1725721838629,-457.23,0.00014999,2]
[337503431,1725721838638,-500.0,0.00014999,2]
[337503433,1725721838647,-500.0,0.00014999,2]
[337503435,1725721838657,-630.6,0.00014999,2]
[337503437,1725721838666,-489.81749721,0.00014999,2]
[337503584,1725721840265,-10.18250279,0.00014999,2]
[337503585,1725721840275,-500.0,0.00014999,2]
[337503586,1725721840284,-350.18,0.00014999,2]
[337503588,1725721840295,-449.10136581,0.00014999,2]
[337503640,1725721843088,-50.89863419,0.00014999,2]
[337503641,1725721843098,-500.0,0.00014999,2]
[337503642,1725721843108,-274.54369529,0.00014999,2]
[337503643,1725721843128,-225.45630471,0.00014999,2]
[337503644,1725721843138,-117.22666859,0.00014999,2]
[337503645,1725721843354,-285.98138495,0.00014999,2]
[337503663,1725721846149,-205.58194646,0.00014999,2]
[337503664,1725721846159,-500.0,0.00014999,2]
[337503665,1725721846170,-500.0,0.00014999,2]
[337503666,1725721846179,-170.54018803,0.00014999,2]
[337503667,1725721846293,-329.45981197,0.00014999,2]
[337503668,1725721846302,-101.77690553,0.00014999,2]
[337503669,1725721846337,-398.22309447,0.00014999,2]
[337503670,1725721846346,-500.0,0.00014999,2]
[337503671,1725721846355,-500.0,0.00014999,2]
[337503672,1725721846365,-203.69,0.00014999,2]
[337503673,1725721846376,-304.272915,0.00014999,2]
[337503674,1725721846387,-141.737085,0.00014999,2]
[337503675,1725721846396,-242.2464004,0.00014999,2]
[337503676,1725721846408,-257.7535996,0.00014999,2]
[337503677,1725721846417,-500.0,0.00014999,2]
[337503678,1725721846426,-500.0,0.00014999,2]
[337503679,1725721846435,-500.0,0.00014999,2]
[337503680,1725721846444,-500.0,0.00014999,2]
[337503681,1725721846455,-500.0,0.00014999,2]
[337503682,1725721846464,-500.0,0.00014999,2]
[337503683,1725721846473,-500.0,0.00014999,2]
[337503685,1725721846482,-500.0,0.00014999,2]
[337503686,1725721846491,-500.0,0.00014999,2]
[337503687,1725721846500,-500.0,0.00014999,2]
[337503688,1725721846509,-622.23,0.00014999,2]
[337503689,1725721846518,-500.0,0.00014999,2]
[337503690,1725721846528,-500.0,0.00014999,2]
[337503691,1725721846537,-500.0,0.00014999,2]
[337503692,1725721846548,-500.0,0.00014999,2]
[337503693,1725721846557,-500.0,0.00014999,2]
[337503694,1725721846566,-500.0,0.00014999,2]
[337503695,1725721846575,-500.0,0.00014999,2]
[337503696,1725721846584,-500.0,0.00014999,2]
[337503697,1725721846593,-500.0,0.00014999,2]
[337503698,1725721846603,-500.0,0.00014999,2]
[337503699,1725721846613,-500.0,0.00014999,2]
[337503700,1725721846622,-500.0,0.00014999,2]
[337503701,1725721846632,-500.0,0.00014999,2]
[337503702,1725721846641,-192.1,0.00014999,2]
[337503703,1725721846651,-500.0,0.00014999,2]
[337503704,1725721846661,-500.0,0.00014999,2]
[337503705,1725721846671,-500.0,0.00014999,2]
[337503706,1725721846680,-500.0,0.00014999,2]
[337503707,1725721846689,-500.0,0.00014999,2]
[337503708,1725721846699,-500.0,0.00014999,2]
[337503709,1725721846710,-500.0,0.00014999,2]
[337503710,1725721846719,-500.0,0.00014999,2]
[337503711,1725721846729,-392.13734401,0.00014999,2]
[337503712,1725721846739,-467.80915268,0.00014999,2]
[337503713,1725721846749,-500.0,0.00014999,2]
[337503714,1725721846759,-500.0,0.00014999,2]
[337503715,1725721846768,-500.0,0.00014999,2]
[337503716,1725721846779,-500.0,0.00014999,2]
[337503717,1725721846789,-500.0,0.00014999,2]
[337503718,1725721846799,-500.0,0.00014999,2]
[337503719,1725721846808,-500.0,0.00014999,2]
[337503720,1725721846817,-500.0,0.00014999,2]
[337503721,1725721846827,-500.0,0.00014999,2]
[337503722,1725721846836,-500.0,0.00014999,2]
[337503723,1725721846846,-500.0,0.00014999,2]
[337503724,1725721846855,-500.0,0.00014999,2]
[337503725,1725721846864,-500.0,0.00014999,2]
[337503726,1725721846873,-500.0,0.00014999,2]
[337503727,1725721846882,-500.0,0.00014999,2]
[337503728,1725721846890,-500.0,0.00014999,2]
[337503729,1725721846901,-500.0,0.00014999,2]
[337503730,1725721846910,-500.0,0.00014999,2]
[337503731,1725721846920,-500.0,0.00014999,2]
[337503732,1725721846930,-500.0,0.00014999,2]
[337503733,1725721846939,-500.0,0.00014999,2]
[337503734,1725721846949,-242.70061132,0.00014999,2]
[337503735,1725721846958,-500.0,0.00014999,2]
[337503736,1725721846967,-284.1,0.00014999,2]
[337503737,1725721846977,-68708.04256479,0.00015,2]
[337503738,1725721846989,-500.0,0.00015,2]
[337503740,1725722319035,1000.0,0.00031297,30]
[337503741,1725722319586,1000.0,0.00031297,30]
[337503742,1725722320159,1000.0,0.00031297,30]
[337503743,1725722321179,1000.0,0.00031297,30]
[337503744,1725722321797,1000.0,0.00031297,30]
[337503745,1725722322388,1000.0,0.00031297,30]
[337503746,1725722323176,3957.0,0.00031297,30]
[337503747,1725722323417,1000.0,0.00031297,30]
[337503748,1725722324024,1000.0,0.00031297,30]
[337503749,1725722324613,1000.0,0.00031297,30]
[337503750,1725722325241,563.69104425,0.00031297,30]
[337503751,1725722364438,152.81,0.00011941,2]
[337503756,1725722752326,200.0,0.00031249,30]
[337503757,1725722752883,200.0,0.00031249,30]
[337503758,1725722753333,200.0,0.00031249,30]
[337503759,1725722754220,200.0,0.00031249,30]
[337503760,1725722754871,200.0,0.00031249,30]
[337503761,1725722755385,200.0,0.00031249,30]
[337503762,1725722756173,200.0,0.00031249,30]
[337503763,1725722756779,200.0,0.00031249,30]
[337503764,1725722757352,200.0,0.00031249,30]
[337503765,1725722757871,200.0,0.00031249,30]
[337503766,1725722758331,200.0,0.00031249,30]
[337503767,1725722758878,200.0,0.00031249,30]
[337503768,1725722759435,200.0,0.00031249,30]
[337503769,1725722760230,200.0,0.00031249,30]
[337503770,1725722760721,200.0,0.00031249,30]
[337503771,1725722761220,200.0,0.00031249,30]
[337503772,1725722761742,200.0,0.00031249,30]
[337503773,1725722762303,200.0,0.00031249,30]
[337503774,1725722762816,200.0,0.00031249,30]
[337503775,1725722763654,200.0,0.00031249,30]
[337503776,1725722764505,200.0,0.00031249,30]
[337503777,1725722764964,690.4,0.00031249,30]
[337503778,1725722796130,200.0,0.00031249,30]
[337503779,1725722796637,200.0,0.00031249,30]
[337503780,1725722797090,200.0,0.00031249,30]
[337503781,1725722797657,200.0,0.00031249,30]
[337503782,1725722798458,200.0,0.00031249,30]
[337503783,1725722799030,200.0,0.00031249,30]
[337503784,1725722799630,200.0,0.00031249,30]
[337503785,1725722800177,200.0,0.00031249,30]
[337503786,1725722801032,200.0,0.00031249,30]
[337503787,1725722801581,200.0,0.00031249,30]
[337503788,1725722802171,200.0,0.00031249,30]
[337503789,1725722802716,200.0,0.00031249,30]
[337503790,1725722803534,200.0,0.00031249,30]
[337503791,1725722804077,200.0,0.00031249,30]
[337503792,1725722804671,200.0,0.00031249,30]
[337503793,1725722806093,200.0,0.00031249,30]
[337503794,1725722806880,200.0,0.00031249,30]
[337503795,1725722807442,200.0,0.00031249,30]
[337503796,1725722808407,200.0,0.00031249,30]
[337503797,1725722808970,200.0,0.00031249,30]
[337503798,1725722809507,200.0,0.00031249,30]
[337503799,1725722809996,200.0,0.00031249,30]
[337503800,1725722810501,200.0,0.00031249,30]
[337503801,1725722810983,200.0,0.00031249,30]
[337503802,1725722811516,200.0,0.00031249,30]
[337503803,1725722812274,200.0,0.00031249,30]
[337503804,1725722812850,200.0,0.00031249,30]
[337503805,1725722813363,200.0,0.00031249,30]
[337503806,1725722813785,200.0,0.00031249,30]
[337503807,1725722814662,200.0,0.00031249,30]
[337503808,1725722815180,200.0,0.00031249,30]
[337503809,1725722815730,200.0,0.00031249,30]
[337503810,1725722816198,200.0,0.00031249,30]
[337503811,1725722816714,200.0,0.00031249,30]
[337503812,1725722817329,200.0,0.00031249,30]
[337503813,1725722817768,200.0,0.00031249,30]
[337503814,1725722818251,200.0,0.00031249,30]
[337503815,1725722818689,200.0,0.00031249,30]
[337503816,1725722819531,200.0,0.00031249,30]
[337503817,1725722819992,200.0,0.00031249,30]
[337503818,1725722820800,200.0,0.00031249,30]
[337503819,1725722821357,200.0,0.00031249,30]
[337503820,1725722821842,200.0,0.00031249,30]
[337503821,1725722822348,200.0,0.00031249,30]
[337503822,1725722822932,200.0,0.00031249,30]
[337503823,1725722823831,200.0,0.00031249,30]
[337503824,1725722824357,200.0,0.00031249,30]
[337503825,1725722824928,200.0,0.00031249,30]
[337503826,1725722825455,200.0,0.00031249,30]
[337503827,1725722825907,200.0,0.00031249,30]
[337503828,1725722826435,200.0,0.00031249,30]
[337503829,1725722826964,690.399999,0.00031249,30]
[337503841,1725722859256,152.81,0.00011633,2]
[337503842,1725722890408,157.06,0.00010959,2]
[337503916,1725723032228,-300.0,0.00012998,2]
[337503917,1725723032238,-500.0,0.00012999,2]
[337503918,1725723032248,-500.0,0.00012999,2]
[337503921,1725723032258,-500.0,0.00012999,2]
[337503923,1725723032267,-500.0,0.00012999,2]
[337503926,1725723032277,-500.0,0.00012999,2]
[337503927,1725723032286,-572.09139309,0.00012999,2]
[337503928,1725723032296,-500.0,0.00012999,2]
[337503930,1725723032305,-150.0,0.00012999,2]
[337503931,1725723032314,-4254.94225843,0.00013,2]
[337503933,1725723032326,-11294.15402162,0.00013,2]
[337503934,1725723032336,-1238.62357742,0.00013,2]
[337503935,1725723032348,-1918.29418788,0.00013,2]
[337503939,1725723032403,-4922.9158703,0.00013,2]
[337503940,1725723032414,-498.56133196,0.00013,2]
[337503942,1725723032443,-1144.03705431,0.00013,2]
[337503943,1725723032455,-700.0,0.00013,2]
[337503945,1725723032469,-1103.55713475,0.00013,2]
[337503946,1725723032480,-4965.6778511,0.00013,2]
[337504175,1725723038340,-10796.96,0.00013,2]
[337504177,1725723038352,-868.5,0.00013,2]
[337504178,1725723038363,-32967.0200952,0.00013,2]
[337504179,1725723038375,-299.58797889,0.00013,2]
[337504181,1725723038387,-887.83016339,0.00013,2]
[337504182,1725723038398,-742.11629914,0.00013,2]
[337504184,1725723038409,-277.0527081,0.00013,2]
[337504185,1725723038421,-7130.13197063,0.00013,2]
[337504189,1725723038488,-2665.46919121,0.00013,2]
[337504191,1725723038524,-10057.64443999,0.00013,2]
[337504193,1725723038536,-1191.41310921,0.00013,2]
[337504195,1725723038557,-7972.88874815,0.00013,2]
[337504229,1725723040774,-7275.47643055,0.00013,2]
[337504230,1725723040786,-256.56627612,0.00013,2]
[337504231,1725723040805,-420.525589,0.00013,2]
[337504233,1725723040998,-7472.70909865,0.00013,2]
[337504234,1725723041010,-609.12748123,0.00013,2]
[337504235,1725723041023,-2617.0751026,0.00013,2]
[337504236,1725723041034,-550.405,0.00013,2]
[337504237,1725723041055,-274.59,0.00013,2]
[337504238,1725723041072,-337.374,0.00013,2]
[337504247,1725723043948,-709.25856652,0.00013,2]
[337504248,1725723043959,-320.26401847,0.00013,2]
[337504249,1725723043970,-802.06340159,0.00013,2]
[337504250,1725723043981,-357.36375668,0.00013,2]
[337504251,1725723043995,-612.5,0.00013,2]
[337504252,1725723044006,-3918.7910805,0.00013,2]
[337504253,1725723044017,-1963.95623651,0.00013,2]
[337504254,1725723044028,-1129.128,0.00013,2]
[337504255,1725723044039,-307.60437692,0.00013,2]
[337504256,1725723044050,-425.50000003,0.00013,2]
[337504257,1725723044063,-269220.29724023,0.00013,2]
[337504266,1725723046388,-612.5,0.00013,2]
[337504267,1725723046399,-432.77116256,0.00013,2]
[337504268,1725723046412,-1698.3,0.00013,2]
[337504269,1725723046426,-5024.88033492,0.00013,2]
[337504270,1725723046507,-346.76974357,0.00013,2]
[337504271,1725723046539,-4553.8190213,0.00013,2]
[337504272,1725723046569,-31654.52141104,0.00013,2]
[337504273,1725723046581,-9094.17687182,0.00013,2]
[337504274,1725723046603,-768.85,0.00013,2]
[337504275,1725723046616,-5791.56,0.00013,2]
[337504276,1725723046628,-850.0,0.00013,2]
[337504277,1725723046642,-578.275,0.00013,2]
[337504279,1725723160532,50000.0,0.00031249,30]
[337504280,1725723166300,50000.0,0.00031249,31]
[337504281,1725723210230,50000.0,0.00031249,32]
[337504282,1725723214070,50000.0,0.00031249,33]
[337504283,1725723218658,50000.0,0.00031249,34]
[337504284,1725723293813,50000.0,0.00031249,35]
[337504285,1725723296944,50000.0,0.00031249,36]
[337504286,1725723300135,50000.0,0.00031249,37]
[337504287,1725723303490,50000.0,0.00031249,38]
[337504288,1725723307215,50000.0,0.00031249,39]
[337504289,1725723332269,500.0,0.00031249,30]
[337504290,1725723333414,-2422.52877788,0.000129,2]
[337504291,1725723333436,-4899.88194363,0.0001299,2]
[337504292,1725723333459,-300.0,0.00012998,2]
[337504293,1725723333480,-46.58927849,0.00012999,2]
[337504294,1725723338537,-753.41072151,0.00012999,2]
[337504295,1725723338557,-500.0,0.00012999,2]
[337504296,1725723338749,-500.0,0.00012999,2]
[337504297,1725723338773,-500.0,0.00012999,2]
[337504298,1725723338795,-336.65264702,0.00012999,2]
[337504299,1725723338816,-150.0,0.00012999,2]
[337504300,1725723338843,-7259.93663147,0.00013,2]
[337504301,1725723338910,-10000.0,0.00013,2]
[337504302,1725723339341,-10000.0,0.00013,2]
[337504303,1725723339542,-10000.0,0.00013,2]
[337504304,1725723339873,-10000.0,0.00013,2]
[337504305,1725723340280,-10000.0,0.00013,2]
[337504306,1725723340558,-10000.0,0.00013,2]
[337504307,1725723340856,-10000.0,0.00013,2]
[337504308,1725723341185,-10000.0,0.00013,2]
[337504309,1725723341545,-10000.0,0.00013,2]
[337504310,1725723341865,-10000.0,0.00013,2]
[337504311,1725723342183,-10000.0,0.00013,2]
[337504312,1725723342626,-10000.0,0.00013,2]
[337504313,1725723342867,-10000.0,0.00013,2]
[337504314,1725723343250,-10000.0,0.00013,2]
[337504315,1725723343540,-10000.0,0.00013,2]
[337504316,1725723344074,-10000.0,0.00013,2]
[337504317,1725723344303,-10000.0,0.00013,2]
[337504318,1725723344686,-10000.0,0.00013,2]
[337504319,1725723345033,-10000.0,0.00013,2]
[337504320,1725723345384,-10000.0,0.00013,2]
[337504321,1725723345930,-10000.0,0.00013,2]
[337504322,1725723346765,-10000.0,0.00013,2]
[337504323,1725723347135,-10000.0,0.00013,2]
[337504324,1725723347500,-10000.0,0.00013,2]
[337504325,1725723347843,-10000.0,0.00013,2]
[337504326,1725723349025,-10000.0,0.00013,2]
[337504327,1725723350438,-10000.0,0.00013,2]
[337504328,1725723357042,202.93,0.00010959,2]
[337504329,1725723367819,169.11,0.00010959,2]
[337504330,1725723378139,845.56,0.00010959,2]
[337504331,1725723391404,158.66,0.00010959,2]
[337504332,1725723401551,648.57,0.00011082,2]
[337504334,1725723425736,750.0,0.00011,2]
[337504336,1725723517371,1000.0,0.00031249,30]
[337504337,1725723517956,1000.0,0.00031249,30]
[337504338,1725723518751,802.50368313,0.00031249,30]
[337504339,1725723596929,3880.71530868,0.00011954,2]
[337504340,1725723606645,2821.460724,0.00011963,2]
[337504341,1725723620204,176.15632561,0.00011924,2]
[337504342,1725723632110,250.0,0.00011973,2]
[337504343,1725723679542,1000.0,0.00031252,30]
[337504344,1725723683810,250.0,0.00011973,2]
[337504349,1725723728835,478.18,0.00011989,2]
[337504352,1725723800601,250.0,0.00011935,2]
[337504353,1725723804759,158.38,0.00011935,2]
[337504354,1725723811724,171.46,0.00011892,2]
[337504355,1725723845302,506.57,0.00027,120]
[337504356,1725723848643,1433.04,0.00011892,2]
[337504357,1725723882320,942.67,0.00011918,2]
[337504358,1725723891828,167.36,0.00011875,2]
[337504359,1725723898798,200.0,0.00011875,2]
[337504360,1725723912146,9442.6,0.00011832,2]
[337504361,1725723912932,1062.03401313,0.00011832,2]
[337504362,1725723912955,937.96598687,0.00011832,2]
[337504363,1725723925567,150.0,9.914e-05,2]
[337504364,1725723925593,150.0,9.914e-05,2]
[337504365,1725723925614,150.0,9.914e-05,2]
[337504366,1725723925635,150.0,9.914e-05,2]
[337504367,1725723925656,44.67,9.914e-05,2]
[337504370,1725724034529,150.0,0.00010959,2]
[337504371,1725724034551,23.52,0.00010959,2]
[337504372,1725724047206,150.0,0.00011913,2]
[337504373,1725724047228,10.13418828,0.00011913,2]
[337504375,1725724054835,150.0,0.00011816,2]
[337504376,1725724054856,150.0,0.00011816,2]
[337504377,1725724054876,124.68,0.00011816,2]
[337504378,1725724088207,1950.94,0.0001186,2]
[337504379,1725724098068,23418.4211702,0.00031261,30]
[337504380,1725724127364,150.0,0.00011898,2]
[337504381,1725724127385,150.0,0.00011898,2]
[337504382,1725724127407,150.0,0.00011898,2]
[337504383,1725724127426,150.0,0.00011898,2]
[337504384,1725724127448,5.87,0.00011898,2]
[337504385,1725724147011,150.0,0.00011898,2]
[337504386,1725724147031,150.0,0.00011898,2]
[337504387,1725724147052,150.0,0.00011898,2]
[337504388,1725724147071,50.0,0.00011898,2]
[337504396,1725724175602,150.0,0.00011953,2]
[337504397,1725724175817,-3211.0,0.00012012,2]
[337504398,1725724175845,-220.26073675,0.00012012,2]
[337504399,1725724175873,-657.94,0.00012014,2]
[337504400,1725724175901,-150.0,0.00012027,2]
[337504401,1725724175928,-150.0,0.00012043,2]
[337504402,1725724175956,-657.94,0.00012044,2]
[337504403,1725724175983,-657.94,0.00012044,2]
[337504404,1725724176011,-657.94,0.00012044,2]
[337504405,1725724176039,-657.94,0.00012044,2]
[337504406,1725724176067,-657.94,0.00012044,2]
[337504407,1725724176098,-657.94,0.00012044,2]
[337504408,1725724176125,-657.94,0.00012044,2]
[337504409,1725724176153,-264.16909684,0.00012044,2]
[337504410,1725724176188,-393.77090316,0.00012044,2]
[337504411,1725724176217,-1749.19,0.0001205,2]
[337504412,1725724176248,-7115.98893043,0.00012054,2]
[337504413,1725724176287,-1023.77735696,0.00012054,2]
[337504414,1725724200661,-9649.78337407,0.00012054,2]
[337504415,1725724200696,-6110.45033854,0.00012054,2]
[337504416,1725724200727,-3539.33303553,0.00012054,2]
[337504417,1725724200774,-507.68435975,0.00012054,2]
[337504426,1725724231467,-164.49,0.00012043,2]
[337504428,1725724231477,-164.49,0.00012044,2]
[337504430,1725724231486,-164.49,0.00012044,2]
[337504432,1725724231496,-164.49,0.00012044,2]
[337504434,1725724231505,-300.0,0.00012053,2]
[337504436,1725724231515,-5952.97260472,0.00012054,2]
[337504438,1725724231525,-819.54,0.00012054,2]
[337504440,1725724231534,-1781.50703611,0.00012054,2]
[337504443,1725724231545,-119.14296389,0.00012054,2]
[337504445,1725724231555,-2246.09,0.00012054,2]
[337504446,1725724231565,-485.73993005,0.00012054,2]
[337504448,1725724231575,-32511.13604945,0.00012054,2]
[337504449,1725724231586,-499.99,0.00012062,2]
[337504450,1725724231596,-5172.96,0.00012072,2]
[337504451,1725724231606,-3659.22,0.00012072,2]
[337504453,1725724231615,-644.67,0.00012178,2]
[337504454,1725724231624,-192.24,0.00012571,2]
[337504455,1725724231634,-419.85822493,0.00012714,2]
[337504457,1725724231643,-3526.665,0.00012879,2]
[337504458,1725724231652,-172.529219,0.000129,2]
[337504459,1725724231661,-155.85325521,0.000129,2]
[337504461,1725724231671,-329.58854168,0.000129,2]
[337504462,1725724231680,-1789.45835229,0.000129,2]
[337504463,1725724231690,-518.39221935,0.000129,2]
[337504465,1725724231700,-160.115128,0.00012973,2]
[337504466,1725724231710,-500.0,0.00012973,2]
[337504467,1725724231719,-500.0,0.00012973,2]
[337504469,1725724231729,-2299.85,0.00012973,2]
[337504470,1725724231738,-155.7,0.00012978,2]
[337504471,1725724231747,-155.7,0.00012982,2]
[337504473,1725724231757,-1763.472,0.00012986,2]
[337504474,1725724231767,-503.458,0.00012986,2]
[337504475,1725724231778,-155.7,0.00012987,2]
[337504477,1725724231790,-150.18,0.0001299,2]
[337504478,1725724231800,-150.18,0.0001299,2]
[337504480,1725724231809,-155.7,0.00012991,2]
[337504481,1725724231819,-155.7,0.00012996,2]
[337504482,1725724231828,-14588.40926522,0.00012999,2]
[337504484,1725724231837,-401432.94533183,0.00013,2]
[337504485,1725724231852,-486.61826601,0.00013,2]
[337504487,1725724231863,-14077.53677643,0.00013,2]
[337504488,1725724231876,-1357.03628517,0.00013,2]
[337504489,1725724231891,-383.7311873,0.00013,2]
[337504699,1725724237599,-280.695,0.00013,2]
[337504708,1725724237819,-1121.48036,0.00013,2]
[337504748,1725724239508,-2951.7197915,0.00013,2]
[337504749,1725724239520,-5615.0,0.00013,2]
[337504750,1725724239891,-37.76175912,0.00013,2]
[337504751,1725724239902,-1545.58894368,0.00013,2]
[337504752,1725724239947,-887.80368,0.00013,2]
[337504753,1725724239959,-475.394608,0.00013,2]
[337504754,1725724239970,-453.8784,0.00013,2]
[337504785,1725724242388,-7979.52814858,0.00013,2]
[337504787,1725724242400,-380.87213384,0.00013,2]
[337504793,1725724242447,-405.466,0.00013,2]
[337504795,1725724242459,-278166.79436085,0.00013,2]
[337504800,1725724242512,-600.64996105,0.00013,2]
[337504802,1725724242524,-460.32635449,0.00013,2]
[337504804,1725724242536,-749817.15025856,0.00013,2]
[337504806,1725724242546,-800.0,0.00013,2]
[337504808,1725724242555,-155.7,0.00013001,2]
[337504810,1725724242564,-155.7,0.00013005,2]
[337504811,1725724242574,-155.7,0.0001301,2]
[337504813,1725724242583,-155.7,0.00013015,2]
[337504815,1725724242593,-155.7,0.00013019,2]
[337504817,1725724242603,-1697.61474,0.0001302,2]
[337504819,1725724242612,-155.7,0.00013024,2]
[337504821,1725724242622,-155.7,0.00013029,2]
[337504823,1725724242633,-155.7,0.00013033,2]
[337504825,1725724242642,-155.7,0.00013038,2]
[337504827,1725724242651,-155.7,0.00013042,2]
[337504829,1725724242661,-1000.0,0.00013079,2]
[337504831,1725724242670,-175.99,0.00013105,2]
[337504833,1725724242680,-1789.45835223,0.00013122,2]
[337504835,1725724242689,-150.0,0.00013127,2]
[337504837,1725724242698,-1697.61474,0.0001315,2]
[337504839,1725724242707,-752.25,0.000132,2]
[337504840,1725724242716,-206.31,0.000132,2]
[337504841,1725724242725,-161.91,0.0001323,2]
[337504842,1725724242735,-420.0,0.00013231,2]
[337504843,1725724242744,-752.25,0.00013241,2]
[337504845,1725724242754,-1697.61475,0.0001331,2]
[337504847,1725724242763,-422.04,0.00013341,2]
[337504849,1725724242773,-752.25,0.00013341,2]
[337504851,1725724242783,-752.25,0.00013341,2]
[337504852,1725724242793,-1789.45835223,0.00013344,2]
[337504854,1725724242965,-1697.61474,0.0001346,2]
[337504855,1725724242974,-224.59,0.00013478,2]
[337504856,1725724242984,-150.0,0.00013488,2]
[337504857,1725724242994,-1789.45835223,0.00013567,2]
[337504858,1725724243004,-1697.61474,0.0001362,2]
[337504859,1725724243014,-289.53,0.00013699,2]
[337504860,1725724243024,-150.0,0.00013699,2]
[337504861,1725724243033,-179.9,0.00013699,2]
[337504862,1725724243043,-3706.0,0.00013755,2]
[337504863,1725724243052,-1697.61475,0.0001377,2]
[337504864,1725724243062,-1789.45835223,0.00013789,2]
[337504865,1725724243072,-703.298394,0.000138,3]
[337504866,1725724243081,-171.46,0.00013874,2]
[337504867,1725724243091,-262.83,0.00013893,2]
[337504868,1725724243101,-835.57,0.00013904,2]
[337504869,1725724243111,-1789.45835223,0.00014011,2]
[337504870,1725724243120,-866.92,0.00014055,2]
[337504871,1725724243130,-150.0,0.00014059,2]
[337504872,1725724243139,-150.11,0.0001406,2]
[337504873,1725724243149,-533.47,0.00014192,2]
[337504874,1725724243160,-302.11,0.00014192,2]
[337504875,1725724243170,-1789.45835223,0.00014233,2]
[337504876,1725724243181,-190.66667,0.00014281,2]
[337504877,1725724243191,-150.0,0.0001442,2]
[337504878,1725724243201,-644.67,0.00014442,2]
[337504879,1725724243210,-1789.45835223,0.00014456,2]
[337504880,1725724243219,-587.0,0.00014524,2]
[337504881,1725724243229,-150.18,0.0001459,2]